bitfinex/quotes_ETHUSD_20241215
["timestamp","ask_amount","ask_price","bid_price","bid_amount"]
[1734243377237,0.8249,3890.5,3890.4,0.08600819]
[1734243377644,1.01444569,3890.5,3890.4,0.08600819]
[1734243377847,0.8249,3890.5,3890.4,0.08600819]
[1734243379123,0.8249,3890.5,3890.1,1.06037216]
[1734243379745,0.8249,3890.5,3890.2,0.08604336]
[1734243382835,0.8249,3890.5,3890.3,1.06037216]
[1734243383150,0.8249,3890.5,3890.4,0.08600819]
[1734243384221,0.8249,3890.5,3890.1,1.06037216]
[1734243384635,0.8249,3890.5,3890.2,0.08604336]
[1734243386443,0.8054,3890.8,3890.3,1.06037216]
[1734243386646,0.86671729,3890.7,3890.3,1.06037216]
[1734243387209,0.8054,3890.8,3890.4,0.08600819]
[1734243387524,0.8054,3890.8,3890.3,1.06037216]
[1734243390737,0.8054,3890.8,3890.4,0.08540233]
[1734243391048,0.8054,3890.8,3890.3,1.06037216]
[1734243391744,0.8054,3890.8,3890.4,0.08540233]
[1734243392368,0.52308679,3891.0,3890.5,1.06037216]
[1734243392526,1.60583531,3891.3,3890.4,0.27716978]
[1734243392527,1.07055687,3891.3,3891.0,0.7719]
[1734243392847,1.07055687,3892.1,3891.2,3.63025216]
[1734243393049,2.16609651,3892.1,3891.5,1.06037216]
[1734243393554,0.8113,3892.2,3891.6,0.08459709]
[1734243393712,1.149336,3892.2,3891.6,0.08459709]
[1734243394315,0.8113,3892.2,3891.6,0.08459709]
[1734243394613,0.8113,3892.2,3891.7,0.08457953]
[1734243394856,0.8113,3892.2,3891.3,1.06037216]
[1734243395036,0.8113,3892.2,3891.8,0.08456196]
[1734243395207,0.8113,3892.2,3891.3,1.06037216]
[1734243395409,0.8113,3892.2,3891.9,0.0845444]
[1734243395623,0.38843831,3892.1,3891.9,0.0845444]
[1734243395844,0.38843831,3892.1,3891.3,1.06037216]
[1734243396048,2.56901,3892.6,3891.7,0.7719]
[1734243396421,2.56901,3892.6,3891.8,0.08389477]
[1734243396622,1.07055687,3893.1,3891.8,0.08389477]
[1734243396856,2.14111374,3893.4,3892.4,1.06037216]
[1734243396857,1.07055687,3893.4,3892.4,1.06037216]
[1734243397156,2.56853,3893.3,3892.4,1.06037216]
[1734243397451,0.36390869,3893.2,3892.5,0.08364617]
[1734243397852,2.93248869,3893.2,3892.3,0.7719]
[1734243398026,2.93248869,3893.2,3892.6,0.08257194]
[1734243398229,2.93248869,3893.2,3892.3,0.7719]
[1734243398443,2.93248869,3893.2,3892.7,0.08233438]
[1734243398660,0.5107535,3893.5,3892.8,1.06037216]
[1734243399048,0.5107535,3893.5,3892.3,3.36671697]
[1734243399049,0.8113,3893.6,3892.9,0.07645327]
[1734243399466,0.8113,3893.6,3892.4,2.56909]
[1734243399660,0.8113,3893.6,3893.0,0.07636972]
[1734243399846,1.20154588,3893.6,3892.4,2.56909]
[1734243400039,1.20154588,3893.6,3893.1,0.07635217]
[1734243400239,1.20154588,3893.6,3892.4,3.0]
[1734243400439,0.8113,3893.6,3892.4,3.0]
[1734243400745,0.8113,3893.6,3892.5,0.0764575]
[1734243400959,2.5684,3893.5,3892.5,0.0764575]
[1734243401156,2.56858,3893.2,3892.3,0.7719]
[1734243401370,2.56858,3893.2,3892.6,0.07632446]
[1734243401566,2.56858,3893.2,3892.3,0.7719]
[1734243401752,2.56858,3893.2,3892.7,0.07630691]
[1734243401964,2.56858,3893.2,3892.3,0.7719]
[1734243402148,2.56858,3893.2,3892.8,0.07628935]
[1734243402580,2.56858,3893.2,3892.3,0.7719]
[1734243402891,2.56858,3893.2,3892.9,0.07627179]
[1734243403196,2.56858,3893.2,3892.4,0.31732595]
[1734243403414,2.56858,3893.2,3893.0,0.07625424]
[1734243403702,2.56858,3893.2,3892.4,0.31732595]
[1734243404048,2.56858,3893.2,3892.5,0.07641351]
[1734243404876,2.56838,3893.5,3892.5,0.07641351]
[1734243405079,2.56858,3893.2,3892.5,0.07641351]
[1734243405300,2.56858,3893.2,3892.3,0.7719]
[1734243405756,2.56858,3893.2,3892.4,0.07637058]
[1734243406867,2.56842,3893.5,3892.4,0.07637058]
[1734243407081,2.56842,3893.5,3892.5,0.7894]
[1734243407607,2.56842,3893.5,3892.6,0.46544465]
[1734243407899,0.8113,3893.6,3892.6,0.46544465]
[1734243410494,3.37962,3893.6,3892.6,0.46544465]
[1734243410725,2.5684,3893.5,3892.6,0.46544465]
[1734243411088,0.52287883,3893.7,3892.6,0.46544465]
[1734243411288,2.56824,3893.8,3892.7,0.8001]
[1734243411799,2.56824,3893.8,3892.8,0.07552803]
[1734243411997,2.56826,3893.7,3892.8,0.07552803]
[1734243413561,2.56826,3893.7,3892.9,0.4264774]
[1734243413724,2.56826,3893.7,3892.9,0.50196055]
[1734243414972,2.56832,3893.6,3892.9,0.50196055]
[1734243415134,2.56832,3893.6,3892.9,0.07548315]
[1734243415648,2.56832,3893.6,3893.0,0.07546574]
[1734243416051,2.56832,3893.6,3892.7,0.8001]
[1734243416369,0.51386505,3893.8,3892.7,0.8001]
[1734243416370,0.7706,3893.7,3893.1,0.07544136]
[1734243416672,0.51386505,3893.8,3892.0,2.56931]
[1734243416673,0.7706,3893.1,3892.4,0.8001]
[1734243416814,3.33925,3893.1,3892.4,0.8001]
[1734243417010,2.56873,3893.0,3892.5,0.07536527]
[1734243417230,2.56873,3893.0,3891.9,0.8001]
[1734243417428,2.56873,3893.0,3892.6,0.0755566]
[1734243417632,2.56873,3893.0,3892.0,0.57709895]
[1734243417839,0.7706,3893.1,3892.7,0.07553905]
[1734243418045,2.56878,3892.9,3892.0,0.57709895]
[1734243418239,2.56878,3892.9,3892.8,0.07552149]
[1734243418446,3.33925,3893.1,3892.0,0.57709895]
[1734243418732,3.33925,3893.1,3892.1,0.37785585]
[1734243418938,0.7706,3893.1,3892.1,0.37785585]
[1734243419273,2.56872,3893.0,3892.2,1.23701944]
[1734243419441,3.07884544,3893.0,3892.2,1.23701944]
[1734243421983,2.56878,3892.9,3892.2,1.23701944]
[1734243433592,0.7706,3893.1,3892.3,0.7722]
[1734243433884,0.7706,3893.1,3892.3,0.84806647]
[1734243433885,3.33924,3893.1,3892.3,0.84806647]
[1734243434263,3.8580506,3893.1,3892.4,1.16139262]
[1734243434707,3.8580506,3893.1,3892.5,0.07583136]
[1734243435605,3.8580506,3893.1,3892.4,1.16139262]
[1734243435767,3.0874506,3893.1,3892.6,0.07581381]
[1734243435970,3.0874506,3893.1,3892.4,1.16139262]
[1734243436163,3.0874506,3893.1,3892.7,0.07579625]
[1734243436369,3.0874506,3893.1,3892.4,1.16139262]
[1734243437092,3.0874506,3893.1,3892.5,0.07583136]
[1734243437413,0.84911151,3893.0,3892.6,0.7722]
[1734243437583,3.41782151,3893.0,3892.6,0.7722]
[1734243437766,2.56871,3893.0,3892.6,0.7722]
[1734243438278,3.19528427,3892.9,3892.6,0.7722]
[1734243440172,0.84989096,3892.8,3892.7,0.07579625]
[1734243440372,1.07055687,3892.9,3892.7,0.07579625]
[1734243440681,1.07055687,3893.0,3892.7,0.07579625]
[1734243441002,0.85049419,3892.9,3892.7,0.07579625]
[1734243441206,1.58936747,3893.1,3892.7,0.07579625]
[1734243441404,3.1971121,3893.0,3892.7,0.07579625]
[1734243441640,0.85062209,3892.9,3892.7,0.07579625]
[1734243441815,1.07055687,3893.1,3892.7,1.23718887]
[1734243442120,0.7665,3893.8,3892.8,0.7722]
[1734243442121,1.07055687,3893.2,3892.8,0.7722]
[1734243442339,0.85080953,3893.1,3892.8,0.7722]
[1734243442545,1.07055687,3893.3,3892.9,0.07600307]
[1734243442706,1.07055687,3893.3,3893.1,0.7722]
[1734243443116,1.07055687,3893.3,3893.2,0.0759203]
[1734243443449,1.35444934,3893.3,3893.2,0.0759203]
[1734243445908,0.50364387,3893.3,3893.2,0.0759203]
[1734243446111,1.35438013,3893.3,3893.2,0.0759203]
[1734243446326,0.50364387,3893.3,3893.2,0.0759203]
[1734243453514,1.35399344,3893.3,3892.8,0.7741]
[1734243453647,0.50364387,3893.3,3892.8,0.7741]
[1734243453834,0.50364387,3893.3,3892.9,0.07543415]
[1734243454054,0.50364387,3893.3,3892.8,0.7741]
[1734243454232,0.50364387,3893.3,3893.0,0.0754166]
[1734243454561,0.50364387,3893.3,3892.8,0.7741]
[1734243454759,0.50364387,3893.3,3893.1,0.07539906]
[1734243454922,0.50364387,3893.3,3892.8,0.7741]
[1734243455323,0.50364387,3893.3,3892.9,0.07543415]
[1734243455763,0.50364387,3893.3,3892.8,0.7741]
[1734243456061,0.50364387,3893.3,3892.9,0.07543415]
[1734243456271,0.50364387,3893.3,3892.8,0.7741]
[1734243456440,0.50364387,3893.3,3893.0,0.0754166]
[1734243456765,0.50364387,3893.3,3892.8,0.7741]
[1734243456972,0.50364387,3893.3,3893.1,0.07550352]
[1734243457291,0.50364387,3893.3,3892.8,0.7741]
[1734243457465,0.85031054,3893.2,3892.8,0.7741]
[1734243457637,0.85031054,3893.2,3892.9,0.07553862]
[1734243457847,0.85031054,3893.2,3892.8,0.7741]
[1734243458028,0.85031054,3893.2,3893.0,0.07552107]
[1734243458229,0.85031054,3893.2,3892.8,0.7741]
[1734243458766,0.85031054,3893.2,3892.1,0.7741]
[1734243458767,1.645038,3893.2,3892.1,0.7741]
[1734243458947,3.94812718,3893.1,3892.9,0.07553862]
[1734243459147,3.94812718,3893.1,3892.1,0.7741]
[1734243459148,3.19622718,3893.0,3892.1,0.7741]
[1734243459564,3.19622718,3893.0,3892.2,0.07578794]
[1734243460481,0.85031054,3892.9,3892.2,0.07578794]
[1734243460639,1.07055687,3893.0,3892.2,0.07578794]
[1734243460839,3.1961707,3893.0,3892.2,0.07578794]
[1734243461080,0.85026023,3892.9,3892.2,0.07578794]
[1734243461421,1.82245687,3893.1,3892.2,0.07578794]
[1734243461629,3.19625647,3893.0,3892.2,0.07578794]
[1734243463183,3.19625647,3893.0,3892.2,1.23718056]
[1734243463384,3.19625647,3893.0,3892.2,0.07578794]
[1734243463616,1.07055687,3892.7,3892.2,0.07578794]
[1734243463929,2.56904,3892.5,3891.8,0.7741]
[1734243464089,2.1256996,3892.4,3891.8,0.7741]
[1734243464291,2.1256996,3892.4,3891.9,0.07607375]
[1734243464700,2.1256996,3892.4,3891.8,1.93549262]
[1734243464924,1.60583531,3892.6,3892.0,1.16139262]
[1734243464925,1.07055687,3892.6,3892.0,1.16139262]
[1734243465455,1.07055687,3892.7,3892.1,0.0762146]
[1734243465645,3.19587159,3892.7,3892.0,1.16139262]
[1734243465945,2.12531472,3892.6,3892.0,1.16139262]
[1734243466140,2.34693265,3892.8,3892.0,1.16139262]
[1734243466439,3.19589393,3892.7,3892.1,0.0763356]
[1734243466826,0.85013482,3892.6,3892.1,0.0763356]
[1734243467028,2.34693265,3892.8,3892.1,0.0763356]
[1734243467229,2.12531848,3892.7,3892.1,0.0763356]
[1734243467427,2.12531848,3892.7,3892.2,1.95299262]
[1734243467743,2.12531848,3892.7,3892.2,0.86791804]
[1734243467900,3.19587535,3892.7,3892.2,0.86791804]
[1734243468307,0.85012739,3892.6,3892.2,0.86791804]
[1734243468507,1.07055687,3892.7,3892.2,0.86791804]
[1734243468816,1.59503265,3892.8,3892.2,0.86791804]
[1734243469023,3.19544428,3892.7,3892.2,0.07631804]
[1734243469219,3.19544428,3892.7,3892.0,1.95299262]
[1734243469718,3.19544428,3892.7,3892.1,0.0763356]
[1734243469939,2.12477358,3892.6,3892.1,0.0763356]
[1734243470259,0.84990943,3892.5,3892.1,0.0763356]
[1734243470459,0.7911,3892.6,3892.1,0.0763356]
[1734243470613,0.84991099,3892.5,3892.1,0.0763356]
[1734243471548,0.7911,3892.6,3892.1,0.0763356]
[1734243471707,1.07055687,3892.7,3892.1,0.0763356]
[1734243471907,3.1951954,3892.7,3892.1,0.0763356]
[1734243474454,0.84981391,3892.6,3892.1,0.0763356]
[1734243474655,2.56924,3892.2,3892.1,0.0763356]
[1734243474950,2.56924,3892.2,3890.3,0.63949794]
[1734243474951,2.56939,3892.0,3890.9,0.7916]
[1734243475152,2.56939,3892.0,3891.0,1.16139262]
[1734243475153,3.1958335,3891.9,3891.0,1.16139262]
[1734243475311,3.1958335,3891.9,3891.1,0.19529926]
[1734243475650,0.84971425,3891.8,3891.2,0.06926137]
[1734243475850,0.84971425,3891.8,3891.1,0.19529926]
[1734243476081,0.84971425,3891.8,3891.3,0.0692438]
[1734243476218,0.84971425,3891.8,3891.1,0.19529926]
[1734243476424,2.56944,3891.9,3891.1,0.19529926]
[1734243478347,1.86280297,3892.1,3891.3,0.7916]
[1734243478654,2.56929,3892.2,3891.4,0.06922624]
[1734243478863,2.56929,3892.2,3891.3,0.7916]
[1734243479151,2.56929,3892.2,3891.5,0.0695768]
[1734243479457,3.36042,3892.1,3891.2,0.21482919]
[1734243479634,1.07170297,3892.3,3891.6,0.06956607]
[1734243479853,2.38870764,3892.4,3891.3,0.7916]
[1734243480057,2.11906378,3892.3,3891.3,0.7916]
[1734243480248,2.11906378,3892.3,3891.3,1.95299262]
[1734243480449,2.38870764,3892.4,3891.4,0.06959436]
[1734243480753,2.56924,3892.2,3891.3,1.95299262]
[1734243481080,2.56924,3892.2,3891.4,0.06959436]
[1734243481284,2.56924,3892.2,3891.3,1.95299262]
[1734243481579,2.56924,3892.2,3891.5,0.0695768]
[1734243481744,2.56924,3892.2,3891.4,0.06959436]
[1734243481945,2.56924,3892.2,3891.3,1.95299262]
[1734243482572,1.60848187,3892.4,3891.3,1.24390026]
[1734243482759,0.84735836,3892.3,3891.3,1.24390026]
[1734243482956,1.86280297,3892.4,3891.4,0.06960803]
[1734243483295,0.84734745,3892.3,3891.4,0.06960803]
[1734243484499,3.41651745,3892.3,3891.4,0.06960803]
[1734243484798,3.64073297,3892.6,3891.5,0.7991]
[1734243485082,2.56903,3892.6,3891.7,0.7991]
[1734243485487,2.56903,3892.6,3891.8,0.06990321]
[1734243486482,2.56903,3892.6,3891.7,0.7991]
[1734243486689,0.761,3892.7,3891.7,0.7991]
[1734243486690,0.761,3892.7,3891.9,0.06985817]
[1734243486853,2.56904,3892.5,3891.7,0.7991]
[1734243487047,2.56904,3892.5,3892.0,0.06984744]
[1734243487255,2.56904,3892.5,3891.7,0.7991]
[1734243487459,2.56904,3892.5,3892.1,0.06983672]
[1734243487661,2.56904,3892.5,3891.7,0.7991]
[1734243487994,2.56904,3892.5,3892.2,0.06968313]
[1734243488304,2.56904,3892.5,3891.7,0.7991]
[1734243488715,2.56904,3892.5,3891.8,0.0697397]
[1734243491402,1.16139262,3892.3,3891.8,0.0697397]
[1734243491609,2.56943,3891.9,3891.8,0.0697397]
[1734243491775,1.16139262,3892.3,3891.3,0.8103]
[1734243491776,0.7825,3892.2,3891.3,0.8103]
[1734243492108,2.56974,3891.5,3890.9,0.8103]
[1734243492279,0.7825,3891.7,3890.9,0.8103]
[1734243492464,2.56979,3891.4,3891.0,0.06991869]
[1734243492783,2.56979,3891.4,3890.9,0.8103]
[1734243493997,2.56979,3891.4,3891.0,0.07026906]
[1734243494298,2.56979,3891.4,3890.9,0.8103]
[1734243495006,0.7825,3891.7,3890.9,0.8103]
[1734243495170,0.7825,3891.7,3890.5,0.8103]
[1734243495171,2.56986,3891.3,3890.5,0.8103]
[1734243495364,2.5699,3891.2,3890.5,0.8103]
[1734243495712,2.56997,3891.1,3890.6,0.07064497]
[1734243496004,2.56997,3891.1,3890.5,0.8103]
[1734243496360,2.56997,3891.1,3890.7,0.07062739]
[1734243496695,2.56997,3891.1,3890.5,0.8103]
[1734243496999,2.56992,3891.2,3890.8,0.07068128]
[1734243497211,2.56996,3891.1,3890.5,0.8103]
[1734243497860,2.56996,3891.1,3890.6,0.07071977]
[1734243498097,2.56996,3891.1,3890.5,0.8103]
[1734243498295,2.56984,3891.3,3890.5,0.8103]
[1734243498662,2.56984,3891.3,3890.6,0.07072647]
[1734243505482,0.51529492,3891.5,3890.6,0.07072647]
[1734243505744,2.56999,3891.1,3890.6,0.07072647]
[1734243506030,2.56981,3891.4,3890.5,0.8103]
[1734243506232,2.56981,3891.4,3890.7,0.07098616]
[1734243506439,0.51529492,3891.5,3890.5,0.8103]
[1734243506584,2.56985,3891.3,3890.8,0.0709344]
[1734243506787,2.56985,3891.3,3890.5,0.8103]
[1734243507102,2.56985,3891.3,3890.6,0.07096954]
[1734243509987,0.35308905,3891.4,3890.6,0.07096954]
[1734243510192,0.7541,3891.1,3890.6,0.07096954]
[1734243510523,0.7541,3891.1,3890.5,0.8103]
[1734243510524,2.57008,3891.0,3890.5,0.8103]
[1734243510846,0.98095817,3891.1,3890.6,0.07103002]
[1734243510847,0.22685817,3891.1,3890.6,0.07103002]
[1734243510987,2.5699,3891.2,3890.5,0.8103]
[1734243511183,2.5699,3891.2,3890.6,0.0710795]
[1734243513710,2.92286905,3891.4,3890.6,0.0710795]
[1734243514368,2.56986,3891.3,3890.6,0.0710795]
[1734243515312,2.9137244,3891.2,3890.6,0.0710795]
[1734243516526,0.7541,3891.1,3890.6,0.0710795]
[1734243516738,2.5701,3890.9,3890.6,0.0710795]
[1734243517048,2.5701,3890.9,3890.5,0.8103]
[1734243517452,2.57017,3890.8,3889.5,2.57102]
[1734243517663,2.57023,3890.7,3890.6,0.07119953]
[1734243517961,1.16139262,3890.9,3889.7,0.7649]
[1734243518191,2.5705,3890.3,3889.7,0.7649]
[1734243518503,2.5705,3890.3,3889.8,0.07158129]
[1734243518648,2.57034,3890.6,3889.7,0.7649]
[1734243518849,3.64190297,3890.8,3889.9,0.0715637]
[1734243519088,2.5702,3890.8,3890.0,0.7649]
[1734243519296,2.5702,3890.8,3890.0,0.83669908]
[1734243520458,2.5702,3890.8,3890.0,0.7649]
[1734243520955,0.51408965,3890.9,3890.0,0.7649]
[1734243522669,0.51408965,3890.9,3890.1,0.07178149]
[1734243522874,3.08418965,3890.9,3890.1,0.07178149]
[1734243524404,3.69132817,3890.9,3890.1,0.07178149]
[1734243526491,1.12122817,3890.9,3890.1,0.07178149]
[1734243526659,1.12122817,3890.9,3890.0,0.7649]
[1734243526864,1.12122817,3890.9,3890.2,0.07168142]
[1734243527079,1.12122817,3890.9,3890.0,0.7649]
[1734243527373,0.51408965,3890.9,3890.3,0.07166384]
[1734243527699,1.67548227,3890.9,3890.4,0.07164626]
[1734243527893,1.67548227,3890.9,3890.0,0.7649]
[1734243528070,1.67548227,3890.9,3890.5,0.07162868]
[1734243528277,1.67548227,3890.9,3890.0,0.7649]
[1734243528465,1.67548227,3890.9,3890.6,0.0716111]
[1734243528668,0.49995423,3890.8,3890.0,0.7649]
[1734243529001,1.16139262,3890.9,3890.7,0.07185196]
[1734243529217,1.16139262,3890.9,3890.0,0.7649]
[1734243529571,1.16139262,3890.9,3890.8,0.07183988]
[1734243529768,1.16139262,3890.9,3890.0,0.7649]
[1734243530168,1.16139262,3890.9,3890.1,0.07196293]
[1734243530368,0.7541,3891.0,3890.1,0.07196293]
[1734243530614,2.23309559,3891.1,3890.2,0.7614]
[1734243530615,1.16139262,3891.1,3890.2,0.7614]
[1734243530777,0.5154276,3891.0,3890.2,0.7614]
[1734243531102,0.5154276,3891.0,3890.3,0.07192777]
[1734243531677,0.5154276,3891.0,3890.2,0.7614]
[1734243532622,0.5154276,3891.0,3890.3,0.07192777]
[1734243533118,0.5154276,3891.0,3890.2,0.7614]
[1734243533270,0.5154276,3891.0,3890.4,0.07191019]
[1734243533471,1.28629845,3891.0,3890.2,0.7614]
[1734243533711,1.28629845,3891.0,3890.5,0.07189261]
[1734243533929,1.28629845,3891.0,3890.2,0.7614]
[1734243534075,1.28629845,3891.0,3890.6,0.07187503]
[1734243534276,1.28629845,3891.0,3890.2,0.7614]
[1734243534476,0.84865288,3890.9,3890.7,0.07185746]
[1734243534825,0.5154276,3891.0,3890.8,0.7614]
[1734243535126,0.5154276,3891.0,3890.9,0.0718223]
[1734243538291,0.5154276,3891.0,3890.8,0.7614]
[1734243538978,0.5154276,3891.0,3890.9,0.07165734]
[1734243539397,0.5154276,3891.0,3890.8,0.7614]
[1734243539584,1.07170297,3891.1,3890.8,0.7614]
[1734243540287,0.85042618,3891.0,3890.8,0.7614]
[1734243540500,1.07170297,3891.2,3890.8,0.7614]
[1734243540721,1.07170297,3891.1,3890.8,0.7614]
[1734243541017,2.23309559,3891.1,3890.8,0.7614]
[1734243541214,3.19797165,3891.0,3890.1,0.7614]
[1734243541419,3.98247165,3891.0,3890.2,0.89098849]
[1734243541619,4.00357073,3890.9,3890.2,0.07160442]
[1734243541816,1.07170297,3890.7,3890.2,0.07160442]
[1734243543116,3.19786747,3890.6,3890.2,0.07160442]
[1734243543325,0.8504658,3890.5,3890.2,0.07160442]
[1734243543528,1.07170297,3890.6,3890.2,0.07160442]
[1734243544909,3.1977551,3890.6,3890.2,0.07160442]
[1734243545733,1.07170297,3890.6,3890.2,0.07160442]
[1734243546743,3.19778463,3890.6,3890.1,0.7614]
[1734243547045,3.19778463,3890.6,3890.3,0.07165832]
[1734243547251,4.01572953,3890.6,3890.2,0.07181083]
[1734243547433,2.12608166,3890.5,3890.1,0.7614]
[1734243547649,1.88964787,3890.6,3890.2,0.07180996]
[1734243547932,0.85046271,3890.5,3890.1,0.7614]
[1734243548115,0.85046271,3890.5,3890.3,0.07179237]
[1734243548305,0.85046271,3890.5,3890.1,0.7614]
[1734243548503,0.85046271,3890.5,3890.4,0.07177479]
[1734243548702,0.85046271,3890.5,3890.1,0.7614]
[1734243548703,1.92216568,3890.6,3890.1,0.7614]
[1734243548906,2.12616206,3890.5,3890.4,0.07191227]
[1734243549121,2.57043,3890.4,3889.8,0.7845]
[1734243549363,2.12616206,3890.3,3889.8,0.7845]
[1734243549539,3.19848516,3890.3,3889.8,0.7845]
[1734243549828,3.19848516,3890.3,3889.2,1.07597678]
[1734243549829,5.76897516,3890.3,3889.4,0.7845]
[1734243550008,3.19848516,3890.2,3889.4,0.7845]
[1734243550220,0.85055002,3890.1,3889.4,0.7845]
[1734243550635,1.0723231,3890.2,3889.4,0.7845]
[1734243550857,1.0723231,3890.3,3889.5,0.7845]
[1734243551016,0.85049799,3890.2,3889.5,1.67552493]
[1734243551217,1.0723231,3890.4,3889.5,0.7845]
[1734243551451,3.19846858,3890.4,3889.5,1.83098015]
[1734243551622,0.51935967,3890.3,3889.5,1.83098015]
[1734243551805,0.85045819,3890.2,3889.7,0.7845]
[1734243552011,1.0723231,3890.4,3889.7,0.7845]
[1734243552416,0.85051434,3890.3,3889.7,0.7845]
[1734243552616,1.0723231,3890.5,3889.7,0.7845]
[1734243552955,1.0723231,3890.3,3889.7,0.7845]
[1734243553115,0.85052737,3890.2,3889.7,0.7845]
[1734243553448,1.0723231,3890.4,3889.7,0.7845]
[1734243553649,3.1987703,3890.4,3889.7,0.7845]
[1734243553820,2.1264472,3890.3,3889.7,0.7845]
[1734243554009,1.0723231,3890.4,3889.7,0.7845]
[1734243554410,3.1992648,3890.4,3889.7,0.7845]
[1734243554618,0.85077668,3890.3,3889.7,0.7845]
[1734243554949,1.0723231,3890.4,3889.7,0.7845]
[1734243555164,3.30617462,3890.3,3889.7,0.7845]
[1734243555324,2.1269475,3890.2,3889.7,0.7845]
[1734243556660,2.25969447,3890.3,3889.7,0.7845]
[1734243556960,0.85067066,3890.2,3889.7,0.7845]
[1734243557178,2.25969447,3890.3,3889.7,0.7845]
[1734243557340,2.12656918,3890.2,3889.7,0.7845]
[1734243558135,1.0723231,3890.4,3889.7,0.7845]
[1734243558356,0.85062592,3890.3,3889.7,0.7845]
[1734243558562,1.57410176,3890.5,3889.7,0.7845]
[1734243558808,2.1267004,3890.4,3889.7,0.7845]
[1734243559666,2.1267004,3890.4,3889.8,0.07232572]
[1734243559961,2.1267004,3890.4,3889.7,0.7845]
[1734243560348,2.1267004,3890.4,3889.8,0.07232572]
[1734243561528,0.8507429,3890.3,3889.8,0.07232572]
[1734243561729,0.57794347,3890.3,3889.7,0.7845]
[1734243561928,0.57794347,3890.3,3889.8,0.07232572]
[1734243562241,0.57794347,3890.3,3889.7,0.7845]
[1734243562438,1.57410176,3890.5,3889.9,0.07230813]
[1734243562652,2.12761097,3890.4,3890.0,0.07229054]
[1734243562969,2.12761097,3890.4,3889.7,0.7845]
[1734243563175,2.12761097,3890.4,3890.1,0.07227296]
[1734243563349,2.12761097,3890.4,3889.7,0.7845]
[1734243563559,2.12761097,3890.4,3889.8,0.07232572]
[1734243563741,3.19993407,3890.4,3889.8,0.07232572]
[1734243565138,3.19993407,3890.4,3889.7,0.7845]
[1734243565341,4.17080289,3890.4,3889.8,0.07232572]
[1734243565668,0.85104439,3890.3,3889.8,0.07232572]
[1734243565863,1.92336749,3890.3,3889.8,0.07232572]
[1734243566063,2.12777777,3890.2,3889.7,0.7845]
[1734243566297,1.0723231,3890.3,3889.9,0.07236867]
[1734243566298,3.6428531,3890.3,3889.9,0.07236867]
[1734243566440,1.62788947,3890.2,3889.8,0.07238625]
[1734243566639,0.7767816,3890.2,3889.7,0.7845]
[1734243566882,0.7767816,3890.2,3889.9,0.07237551]
[1734243567039,0.7767816,3890.2,3889.8,0.07238625]
[1734243567246,3.6428531,3890.3,3889.8,0.07238625]
[1734243567439,0.85107411,3890.2,3889.7,0.7845]
[1734243567646,0.85107411,3890.2,3889.9,0.07236867]
[1734243567847,0.85107411,3890.2,3889.8,0.07238625]
[1734243568048,2.57053,3890.3,3889.7,0.7845]
[1734243568250,2.57053,3890.3,3889.9,0.07236867]
[1734243568449,1.0723231,3890.4,3889.8,0.07238625]
[1734243568650,1.0723231,3890.4,3889.7,0.7845]
[1734243568991,0.85107646,3890.3,3889.8,0.07258975]
[1734243569182,1.0723231,3890.4,3889.8,0.07258975]
[1734243569346,4.14446176,3890.5,3889.7,0.7845]
[1734243569547,2.12771255,3890.4,3889.8,0.07258975]
[1734243570648,1.57410176,3890.5,3889.8,0.07258975]
[1734243570883,6.27166537,3890.4,3889.8,0.07258975]
[1734243571092,3.20015365,3890.3,3889.8,0.07258975]
[1734243571458,3.20015365,3890.3,3889.7,0.7845]
[1734243571647,3.20015365,3890.3,3889.9,0.07253916]
[1734243571853,0.851081,3890.2,3889.8,0.07255675]
[1734243572079,4.14383482,3890.4,3889.7,0.7845]
[1734243572390,2.83125431,3890.3,3889.8,0.07255675]
[1734243572550,0.85107177,3890.2,3889.8,0.07255675]
[1734243572752,0.85107177,3890.2,3889.7,0.7845]
[1734243572953,2.57064,3890.1,3889.8,0.07255675]
[1734243573247,1.0723231,3890.2,3889.7,0.7845]
[1734243573451,3.6428331,3890.3,3889.9,0.07253916]
[1734243573696,0.85102298,3890.2,3889.8,0.07255675]
[1734243573857,0.85102298,3890.2,3889.7,0.7845]
[1734243574056,0.85102298,3890.2,3889.9,0.07253916]
[1734243574304,3.37873989,3890.3,3889.8,0.07255675]
[1734243574454,2.57051,3890.3,3889.7,0.7845]
[1734243574796,2.57051,3890.3,3889.8,0.07255675]
[1734243575147,2.57051,3890.3,3889.7,0.7845]
[1734243575455,2.57051,3890.3,3889.8,0.07255675]
[1734243575868,2.57051,3890.3,3889.7,0.7845]
[1734243576069,2.57051,3890.3,3889.9,0.07253916]
[1734243576384,2.57051,3890.3,3889.7,0.7845]
[1734243576588,1.57410176,3890.5,3889.7,0.7845]
[1734243576791,2.12780007,3890.4,3889.8,0.07255675]
[1734243577307,3.20012317,3890.4,3889.8,0.07255675]
[1734243577885,0.85112003,3890.3,3889.8,0.07255675]
[1734243578087,1.0723231,3890.4,3889.8,0.07255675]
[1734243578386,1.0723231,3890.4,3889.9,0.07253916]
[1734243578387,3.20020543,3890.4,3889.9,0.07253916]
[1734243578591,4.24691406,3890.4,3889.9,0.07253916]
[1734243578767,0.85115293,3890.3,3889.7,0.7845]
[1734243578970,1.0723231,3890.4,3889.8,0.07254025]
[1734243579287,3.20029363,3890.4,3889.8,0.07254025]
[1734243579498,5.77073363,3890.4,3889.8,0.07254025]
[1734243579787,0.8512111,3890.3,3889.8,0.07254025]
[1734243580288,2.12803569,3890.3,3889.7,0.7845]
[1734243580493,2.12803569,3890.3,3889.9,0.07252266]
[1734243580789,2.12803569,3890.3,3889.8,0.07254025]
[1734243580990,2.12803569,3890.3,3889.7,0.7845]
[1734243581314,2.12803569,3890.3,3889.9,0.07252266]
[1734243581493,2.12803569,3890.3,3889.8,0.07254025]
[1734243581680,2.12803569,3890.3,3889.7,0.7845]
[1734243581888,2.12803569,3890.3,3889.9,0.07252266]
[1734243582199,2.12803569,3890.3,3889.8,0.07254025]
[1734243582365,2.12803569,3890.3,3889.7,0.7845]
[1734243582725,2.12803569,3890.3,3889.8,0.07254025]
[1734243583221,2.12803569,3890.3,3889.9,0.07252266]
[1734243583398,3.20035879,3890.3,3889.9,0.07252266]
[1734243583561,6.71295074,3890.3,3889.4,0.7801]
[1734243583759,2.12803569,3890.2,3889.5,0.96385191]
[1734243583993,2.12803569,3890.2,3889.5,0.07259302]
[1734243584378,0.85162884,3890.1,3889.5,0.07259302]
[1734243584583,3.6428331,3890.3,3889.5,0.07259302]
[1734243584584,1.0723231,3890.2,3889.5,0.07259302]